[Event "Titled Tuesday Blitz December 7 2021"]
[White "Budrewicz, Krzysztof"]
[Black "Gabdushev, Ruslan"]
[WhiteFideId "1127950"]
[BlackFideId "4137833"]
[WhiteElo "2242"]
[BlackElo "2312"]
[Result "1-0"]
[Round "06"]
[TimeControl "180+1"]
[Date "2021.12.07"]
[WhiteClock "0:00:20"]
[BlackClock "0:00:02"]

1. d4 {[%clk 0:03:00]}  Nc6 {[%clk 0:02:58]} 2. Nf3 {[%clk 0:03:00]}  d6 {[%clk 0:02:58]} 3. c4 {[%clk 0:03:00]}  Bg4 {[%clk 0:02:57]} 4. d5 {[%clk 0:02:58]}  Bxf3 {[%clk 0:02:55]} 5. exf3 {[%clk 0:02:58]}  Ne5 {[%clk 0:02:55]} 6. f4 {[%clk 0:02:59]}  Nd7 {[%clk 0:02:56]} 7. Nc3 {[%clk 0:02:59]}  g6 {[%clk 0:02:55]} 8. h4 {[%clk 0:02:59]}  Ngf6 {[%clk 0:02:42]} 9. Be2 {[%clk 0:02:58]}  c6 {[%clk 0:02:19]} 10. O-O {[%clk 0:02:50]}  Bg7 {[%clk 0:02:15]} 11. h5 {[%clk 0:02:49]}  gxh5 {[%clk 0:02:14]} 12. dxc6 {[%clk 0:02:46]}  bxc6 {[%clk 0:02:13]} 13. Bxh5 {[%clk 0:02:46]}  Nxh5 {[%clk 0:02:08]} 14. Qxh5 {[%clk 0:02:47]}  Nf6 {[%clk 0:02:07]} 15. Qf3 {[%clk 0:02:46]}  Qc8 {[%clk 0:02:04]} 16. f5 {[%clk 0:02:43]}  Nd7 {[%clk 0:01:58]} 17. Re1 {[%clk 0:02:41]}  Bf6 {[%clk 0:01:56]} 18. Ne4 {[%clk 0:02:37]}  Ne5 {[%clk 0:01:52]} 19. Nxf6+ {[%clk 0:02:37]}  exf6 {[%clk 0:01:51]} 20. Qe4 {[%clk 0:02:32]}  Kd8 {[%clk 0:00:57]} 21. f4 {[%clk 0:02:29]}  Nd7 {[%clk 0:00:57]} 22. Qe7+ {[%clk 0:02:19]}  Kc7 {[%clk 0:00:56]} 23. Rd1 {[%clk 0:02:20]}  Qf8 {[%clk 0:00:53]} 24. Qe3 {[%clk 0:02:15]}  Rg8 {[%clk 0:00:47]} 25. Bd2 {[%clk 0:02:13]}  Qg7 {[%clk 0:00:35]} 26. Ba5+ {[%clk 0:02:12]}  Kb7 {[%clk 0:00:34]} 27. Rd2 {[%clk 0:02:13]}  Rae8 {[%clk 0:00:30]} 28. Qf3 {[%clk 0:02:09]}  Re7 {[%clk 0:00:12]} 29. Rxd6 {[%clk 0:02:07]}  Nb8 {[%clk 0:00:12]} 30. Rad1 {[%clk 0:02:03]}  Rge8 {[%clk 0:00:12]} 31. Kf2 {[%clk 0:01:58]}  Qf8 {[%clk 0:00:11]} 32. R6d2 {[%clk 0:01:57]}  Qh6 {[%clk 0:00:11]} 33. Bb4 {[%clk 0:01:50]}  Re4 {[%clk 0:00:10]} 34. Bd6 {[%clk 0:01:32]}  Qh4+ {[%clk 0:00:09]} 35. g3 {[%clk 0:01:12]}  Qh2+ {[%clk 0:00:08]} 36. Kf1 {[%clk 0:01:12]}  Qh3+ {[%clk 0:00:06]} 37. Qg2 {[%clk 0:01:02]}  Qxf5 {[%clk 0:00:06]} 38. b3 {[%clk 0:01:00]}  Na6 {[%clk 0:00:05]} 39. b4 {[%clk 0:00:57]}  R8e6 {[%clk 0:00:04]} 40. a3 {[%clk 0:00:54]}  Rxc4 {[%clk 0:00:03]} 41. Kg1 {[%clk 0:00:51]}  Rce4 {[%clk 0:00:03]} 42. Rf2 {[%clk 0:00:43]}  h5 {[%clk 0:00:03]} 43. Qf3 {[%clk 0:00:42]}  Re3 {[%clk 0:00:03]} 44. Qg2 {[%clk 0:00:40]}  Qg4 {[%clk 0:00:03]} 45. f5 {[%clk 0:00:28]}  Rxg3 {[%clk 0:00:03]} 46. Bxg3 {[%clk 0:00:22]}  Qxd1+ {[%clk 0:00:03]} 47. Kh2 {[%clk 0:00:23]}  Re4 {[%clk 0:00:02]} 48. Qxe4 {[%clk 0:00:21]}  Qe1 {[%clk 0:00:02]} 49. Qxe1 {[%clk 0:00:20]} 1-0


[Site "https://www.chess.com"]

[Event "Titled Tuesday Blitz December 7 2021"]
[White "Colbow, Collin"]
[Black "Hasangatin, Ramil"]
[WhiteFideId "16201132"]
[BlackFideId "4122160"]
[WhiteElo "2137"]
[BlackElo "2375"]
[Result "1-0"]
[Round "06"]
[TimeControl "180+1"]
[Date "2021.12.07"]
[WhiteClock "0:00:09"]
[BlackClock "0:00:42"]

1. e4 {[%clk 0:03:00]}  c5 {[%clk 0:02:58]} 2. Nc3 {[%clk 0:03:00]}  e6 {[%clk 0:02:57]} 3. Nf3 {[%clk 0:02:57]}  Nc6 {[%clk 0:02:55]} 4. d4 {[%clk 0:02:58]}  cxd4 {[%clk 0:02:56]} 5. Nxd4 {[%clk 0:02:58]}  Nf6 {[%clk 0:02:57]} 6. Ndb5 {[%clk 0:02:58]}  Bc5 {[%clk 0:02:56]} 7. Bf4 {[%clk 0:02:52]}  O-O {[%clk 0:02:55]} 8. Bd6 {[%clk 0:02:50]}  Bxd6 {[%clk 0:02:46]} 9. Qxd6 {[%clk 0:02:51]}  a6 {[%clk 0:02:44]} 10. Nd4 {[%clk 0:02:38]}  Ne8 {[%clk 0:02:32]} 11. Nxc6 {[%clk 0:02:32]}  bxc6 {[%clk 0:02:33]} 12. Qd4 {[%clk 0:02:27]}  d5 {[%clk 0:02:28]} 13. O-O-O {[%clk 0:02:24]}  Rb8 {[%clk 0:02:27]} 14. Bc4 {[%clk 0:02:20]}  Qa5 {[%clk 0:02:20]} 15. exd5 {[%clk 0:02:15]}  cxd5 {[%clk 0:02:16]} 16. Bb3 {[%clk 0:02:15]}  Nf6 {[%clk 0:02:13]} 17. f4 {[%clk 0:02:13]}  Qb6 {[%clk 0:02:07]} 18. Qd2 {[%clk 0:02:01]}  Bd7 {[%clk 0:02:05]} 19. g4 {[%clk 0:02:00]}  Bc6 {[%clk 0:02:01]} 20. g5 {[%clk 0:01:49]}  Ne4 {[%clk 0:02:01]} 21. Nxe4 {[%clk 0:01:49]}  dxe4 {[%clk 0:02:02]} 22. Rhe1 {[%clk 0:01:45]}  a5 {[%clk 0:02:01]} 23. Qd4 {[%clk 0:01:40]}  a4 {[%clk 0:01:58]} 24. Qxb6 {[%clk 0:01:33]}  Rxb6 {[%clk 0:01:58]} 25. Bc4 {[%clk 0:01:33]}  Rfb8 {[%clk 0:01:59]} 26. b3 {[%clk 0:01:33]}  Kf8 {[%clk 0:01:59]} 27. Kb2 {[%clk 0:01:25]}  Ke7 {[%clk 0:01:59]} 28. Kc3 {[%clk 0:01:23]}  f5 {[%clk 0:01:56]} 29. gxf6+ {[%clk 0:01:19]}  gxf6 {[%clk 0:01:55]} 30. Rg1 {[%clk 0:01:19]}  f5 {[%clk 0:01:47]} 31. Rg7+ {[%clk 0:01:16]}  Kf6 {[%clk 0:01:47]} 32. Rxh7 {[%clk 0:01:14]}  Be8 {[%clk 0:01:32]} 33. Rg1 {[%clk 0:00:51]}  axb3 {[%clk 0:01:27]} 34. axb3 {[%clk 0:00:52]}  Bf7 {[%clk 0:01:23]} 35. Rh6+ {[%clk 0:00:47]}  Ke7 {[%clk 0:01:24]} 36. Rg7 {[%clk 0:00:43]}  Rf8 {[%clk 0:01:23]} 37. h4 {[%clk 0:00:38]}  Rd6 {[%clk 0:01:20]} 38. h5 {[%clk 0:00:37]}  e3 {[%clk 0:01:21]} 39. Rg3 {[%clk 0:00:31]}  e5 {[%clk 0:01:14]} 40. Rxd6 {[%clk 0:00:27]}  Kxd6 {[%clk 0:01:14]} 41. fxe5+ {[%clk 0:00:27]}  Kxe5 {[%clk 0:01:13]} 42. Rxe3+ {[%clk 0:00:20]}  Kf4 {[%clk 0:01:13]} 43. Re7 {[%clk 0:00:10]}  Bxh5 {[%clk 0:01:13]} 44. b4 {[%clk 0:00:10]}  Rc8 {[%clk 0:01:10]} 45. b5 {[%clk 0:00:09]}  Bf3 {[%clk 0:01:09]} 46. b6 {[%clk 0:00:05]}  Rb8 {[%clk 0:01:03]} 47. Re6 {[%clk 0:00:02]}  Rc8 {[%clk 0:00:58]} 48. Kb4 {[%clk 0:00:02]}  Bd1 {[%clk 0:00:54]} 49. c3 {[%clk 0:00:02]}  Bc2 {[%clk 0:00:51]} 50. Re7 {[%clk 0:00:02]}  Be4 {[%clk 0:00:50]} 51. b7 {[%clk 0:00:02]}  Rb8 {[%clk 0:00:50]} 52. Ba6 {[%clk 0:00:03]}  Rh8 {[%clk 0:00:46]} 53. Kc5 {[%clk 0:00:03]}  Bf3 {[%clk 0:00:44]} 54. Kb6 {[%clk 0:00:04]}  Rh1 {[%clk 0:00:44]} 55. Ka7 {[%clk 0:00:04]}  Bxb7 {[%clk 0:00:42]} 56. Kxb7 {[%clk 0:00:04]}  Rc1 {[%clk 0:00:42]} 57. c4 {[%clk 0:00:04]}  Kg3 {[%clk 0:00:42]} 58. Kb6 {[%clk 0:00:05]}  f4 {[%clk 0:00:42]} 59. c5 {[%clk 0:00:05]}  f3 {[%clk 0:00:43]} 60. c6 {[%clk 0:00:04]}  Rb1+ {[%clk 0:00:41]} 61. Kc5 {[%clk 0:00:03]}  Rc1+ {[%clk 0:00:41]} 62. Kd6 {[%clk 0:00:03]}  Rd1+ {[%clk 0:00:41]} 63. Ke6 {[%clk 0:00:04]}  Ra1 {[%clk 0:00:40]} 64. Bb5 {[%clk 0:00:03]}  Rb1 {[%clk 0:00:40]} 65. c7 {[%clk 0:00:04]}  Rc1 {[%clk 0:00:36]} 66. Kd7 {[%clk 0:00:03]}  f2 {[%clk 0:00:36]} 67. c8=Q {[%clk 0:00:03]}  Rd1+ {[%clk 0:00:37]} 68. Ke8 {[%clk 0:00:03]}  f1=Q {[%clk 0:00:37]} 69. Bxf1 {[%clk 0:00:02]}  Rxf1 {[%clk 0:00:38]} 70. Rg7+ {[%clk 0:00:03]}  Kf2 {[%clk 0:00:38]} 71. Rf7+ {[%clk 0:00:03]}  Ke1 {[%clk 0:00:38]} 72. Rxf1+ {[%clk 0:00:04]}  Kxf1 {[%clk 0:00:38]} 73. Ke7 {[%clk 0:00:04]}  Ke2 {[%clk 0:00:39]} 74. Ke6 {[%clk 0:00:05]}  Ke3 {[%clk 0:00:40]} 75. Ke5 {[%clk 0:00:06]}  Kd3 {[%clk 0:00:40]} 76. Qc5 {[%clk 0:00:06]}  Kd2 {[%clk 0:00:40]} 77. Qd4+ {[%clk 0:00:07]}  Ke2 {[%clk 0:00:40]} 78. Ke4 {[%clk 0:00:08]}  Ke1 {[%clk 0:00:40]} 79. Qb2 {[%clk 0:00:08]}  Kf1 {[%clk 0:00:41]} 80. Kf3 {[%clk 0:00:08]}  Ke1 {[%clk 0:00:42]} 81. Qe2# {[%clk 0:00:09]} 1-0


[Site "https://www.chess.com"]

[Event "Titled Tuesday Blitz December 7 2021"]
[White "Csonka, Balazs"]
[Black "Nilsen, Tobias Lang"]
[WhiteFideId "742910"]
[BlackFideId "1521624"]
[WhiteElo "2404"]
[BlackElo "1979"]
[Result "1-0"]
[Round "06"]
[TimeControl "180+1"]
[Date "2021.12.07"]
[WhiteClock "0:00:07"]
[BlackClock "0:00:38"]

1. e4 {[%clk 0:03:00]}  e6 {[%clk 0:02:59]} 2. d4 {[%clk 0:02:57]}  d5 {[%clk 0:02:59]} 3. Nd2 {[%clk 0:02:57]}  a6 {[%clk 0:02:59]} 4. c3 {[%clk 0:02:55]}  Nf6 {[%clk 0:02:58]} 5. e5 {[%clk 0:02:54]}  Nfd7 {[%clk 0:02:59]} 6. Bd3 {[%clk 0:02:54]}  c5 {[%clk 0:02:59]} 7. Ne2 {[%clk 0:02:52]}  Nc6 {[%clk 0:02:59]} 8. f4 {[%clk 0:02:45]}  f6 {[%clk 0:02:58]} 9. Nf3 {[%clk 0:02:41]}  Be7 {[%clk 0:02:47]} 10. O-O {[%clk 0:02:32]}  O-O {[%clk 0:02:46]} 11. Be3 {[%clk 0:02:28]}  cxd4 {[%clk 0:02:45]} 12. cxd4 {[%clk 0:02:12]}  f5 {[%clk 0:02:45]} 13. Kh1 {[%clk 0:02:07]}  Kh8 {[%clk 0:02:45]} 14. Rg1 {[%clk 0:02:05]}  Rg8 {[%clk 0:02:41]} 15. g4 {[%clk 0:02:00]}  g6 {[%clk 0:02:42]} 16. Qd2 {[%clk 0:01:51]}  Nb6 {[%clk 0:02:40]} 17. b3 {[%clk 0:01:47]}  Bd7 {[%clk 0:02:37]} 18. Rg2 {[%clk 0:01:43]}  Qc7 {[%clk 0:02:36]} 19. Rag1 {[%clk 0:01:42]}  a5 {[%clk 0:02:27]} 20. h4 {[%clk 0:01:16]}  Bb4 {[%clk 0:02:08]} 21. Qd1 {[%clk 0:01:06]}  Ne7 {[%clk 0:02:06]} 22. Ng5 {[%clk 0:00:58]}  Rg7 {[%clk 0:01:59]} 23. h5 {[%clk 0:00:57]}  Nc6 {[%clk 0:01:39]} 24. gxf5 {[%clk 0:00:40]}  gxf5 {[%clk 0:01:37]} 25. Nxe6 {[%clk 0:00:30]}  Bxe6 {[%clk 0:01:37]} 26. Rxg7 {[%clk 0:00:30]}  Qxg7 {[%clk 0:01:38]} 27. Rxg7 {[%clk 0:00:30]}  Kxg7 {[%clk 0:01:39]} 28. Ng3 {[%clk 0:00:28]}  Rf8 {[%clk 0:01:32]} 29. Bxf5 {[%clk 0:00:23]}  Bxf5 {[%clk 0:01:14]} 30. Nxf5+ {[%clk 0:00:23]}  Kh8 {[%clk 0:01:15]} 31. Nh6 {[%clk 0:00:18]}  Ne7 {[%clk 0:01:10]} 32. Qg4 {[%clk 0:00:18]}  Ng8 {[%clk 0:00:46]} 33. f5 {[%clk 0:00:15]}  Nxh6 {[%clk 0:00:43]} 34. Bxh6 {[%clk 0:00:16]}  Rg8 {[%clk 0:00:44]} 35. Qh4 {[%clk 0:00:15]}  Nd7 {[%clk 0:00:40]} 36. e6 {[%clk 0:00:13]}  Bf8 {[%clk 0:00:38]} 37. exd7 {[%clk 0:00:09]}  Bxh6 {[%clk 0:00:38]} 38. d8=Q {[%clk 0:00:08]}  a4 {[%clk 0:00:39]} 39. Qhf6+ {[%clk 0:00:07]}  Bg7 {[%clk 0:00:38]} 40. h6 {[%clk 0:00:06]}  Bxf6 {[%clk 0:00:37]} 41. Qxf6+ {[%clk 0:00:07]}  Rg7 {[%clk 0:00:38]} 1-0


[Site "https://www.chess.com"]

[Event "Titled Tuesday Blitz December 7 2021"]
[White "Demchenko, Anton"]
[Black "Aldokhin, Ivan"]
[WhiteFideId "4160258"]
[BlackFideId "24115720"]
[WhiteElo "2531"]
[BlackElo "2231"]
[Result "1/2-1/2"]
[Round "06"]
[TimeControl "180+1"]
[Date "2021.12.07"]
[WhiteClock "0:00:09"]
[BlackClock "0:00:04"]

1. e4 {[%clk 0:03:00]}  c5 {[%clk 0:03:00]} 2. Nf3 {[%clk 0:03:00]}  e6 {[%clk 0:03:01]} 3. d4 {[%clk 0:03:00]}  cxd4 {[%clk 0:03:01]} 4. Nxd4 {[%clk 0:03:01]}  a6 {[%clk 0:03:02]} 5. a3 {[%clk 0:03:01]}  Qc7 {[%clk 0:03:02]} 6. Nc3 {[%clk 0:02:57]}  Nf6 {[%clk 0:03:02]} 7. f4 {[%clk 0:02:57]}  d6 {[%clk 0:02:58]} 8. g4 {[%clk 0:02:57]}  h6 {[%clk 0:02:50]} 9. Be3 {[%clk 0:02:48]}  b5 {[%clk 0:02:33]} 10. g5 {[%clk 0:02:47]}  hxg5 {[%clk 0:02:31]} 11. fxg5 {[%clk 0:02:48]}  Nfd7 {[%clk 0:02:15]} 12. g6 {[%clk 0:02:48]}  Ne5 {[%clk 0:02:11]} 13. gxf7+ {[%clk 0:02:48]}  Qxf7 {[%clk 0:02:09]} 14. Be2 {[%clk 0:02:43]}  Be7 {[%clk 0:02:00]} 15. Kd2 {[%clk 0:02:33]}  Nbd7 {[%clk 0:01:40]} 16. Qg1 {[%clk 0:02:27]}  Bb7 {[%clk 0:01:19]} 17. Rf1 {[%clk 0:02:00]}  Bf6 {[%clk 0:01:18]} 18. Bg5 {[%clk 0:01:44]}  O-O-O {[%clk 0:01:14]} 19. Kc1 {[%clk 0:01:37]}  Kb8 {[%clk 0:01:09]} 20. h4 {[%clk 0:01:36]}  Rc8 {[%clk 0:01:08]} 21. Qe3 {[%clk 0:01:31]}  Nc5 {[%clk 0:00:37]} 22. Rhg1 {[%clk 0:01:17]}  Qe7 {[%clk 0:00:34]} 23. Bxf6 {[%clk 0:01:14]}  gxf6 {[%clk 0:00:34]} 24. h5 {[%clk 0:01:14]}  Rc7 {[%clk 0:00:26]} 25. Kb1 {[%clk 0:01:11]}  Qh7 {[%clk 0:00:12]} 26. Rf4 {[%clk 0:01:09]}  Nc4 {[%clk 0:00:10]} 27. Bxc4 {[%clk 0:01:09]}  e5 {[%clk 0:00:09]} 28. Rxf6 {[%clk 0:00:48]}  exd4 {[%clk 0:00:09]} 29. Qxd4 {[%clk 0:00:49]}  bxc4 {[%clk 0:00:10]} 30. Rxd6 {[%clk 0:00:34]}  Qxh5 {[%clk 0:00:09]} 31. e5 {[%clk 0:00:30]}  Re8 {[%clk 0:00:07]} 32. Re1 {[%clk 0:00:29]}  Qf7 {[%clk 0:00:07]} 33. Rd8+ {[%clk 0:00:17]}  Rxd8 {[%clk 0:00:06]} 34. Qxd8+ {[%clk 0:00:17]}  Rc8 {[%clk 0:00:06]} 35. Qd4 {[%clk 0:00:17]}  Qc7 {[%clk 0:00:07]} 36. e6 {[%clk 0:00:17]}  Qe7 {[%clk 0:00:04]} 37. Qe5+ {[%clk 0:00:17]}  Qc7 {[%clk 0:00:03]} 38. Qd4 {[%clk 0:00:17]}  Ka8 {[%clk 0:00:04]} 39. Qxc4 {[%clk 0:00:16]}  Qc6 {[%clk 0:00:04]} 40. e7 {[%clk 0:00:15]}  Re8 {[%clk 0:00:04]} 41. Qf7 {[%clk 0:00:15]}  Qd7 {[%clk 0:00:04]} 42. Qf6 {[%clk 0:00:12]}  Qc6 {[%clk 0:00:03]} 43. Qe5 {[%clk 0:00:12]}  Nd7 {[%clk 0:00:03]} 44. Qg7 {[%clk 0:00:09]}  Nb6 {[%clk 0:00:03]} 45. Qf7 {[%clk 0:00:09]}  Qd7 {[%clk 0:00:03]} 46. b3 {[%clk 0:00:07]}  Nc8 {[%clk 0:00:03]} 47. Rd1 {[%clk 0:00:05]}  Qxe7 {[%clk 0:00:04]} 48. Qxe7 {[%clk 0:00:06]}  Rxe7 {[%clk 0:00:04]} 49. Na4 {[%clk 0:00:06]}  Rc7 {[%clk 0:00:05]} 50. Kb2 {[%clk 0:00:06]}  Ka7 {[%clk 0:00:05]} 51. Nc3 {[%clk 0:00:07]}  Bc6 {[%clk 0:00:06]} 52. Rg1 {[%clk 0:00:06]}  Re7 {[%clk 0:00:07]} 53. Rg6 {[%clk 0:00:06]}  Bb7 {[%clk 0:00:07]} 54. a4 {[%clk 0:00:06]}  Nb6 {[%clk 0:00:06]} 55. Na2 {[%clk 0:00:06]}  Nd5 {[%clk 0:00:07]} 56. Rg2 {[%clk 0:00:06]}  Ne3 {[%clk 0:00:05]} 57. Rd2 {[%clk 0:00:06]}  Nf1 {[%clk 0:00:05]} 58. Rf2 {[%clk 0:00:07]}  Ne3 {[%clk 0:00:05]} 59. Rd2 {[%clk 0:00:07]}  Rc7 {[%clk 0:00:04]} 60. Nb4 {[%clk 0:00:07]}  Rf7 {[%clk 0:00:04]} 61. Nd3 {[%clk 0:00:07]}  Nd5 {[%clk 0:00:03]} 62. Nc5 {[%clk 0:00:07]}  Ba8 {[%clk 0:00:03]} 63. Ne6 {[%clk 0:00:07]}  Nf4 {[%clk 0:00:02]} 64. Rf2 {[%clk 0:00:06]}  Nd3+ {[%clk 0:00:02]} 65. cxd3 {[%clk 0:00:04]}  Rxf2+ {[%clk 0:00:03]} 66. Kc3 {[%clk 0:00:05]}  Rh2 {[%clk 0:00:03]} 67. Nd4 {[%clk 0:00:06]}  Rh3 {[%clk 0:00:04]} 68. Ne6 {[%clk 0:00:05]}  Be4 {[%clk 0:00:03]} 69. Nf4 {[%clk 0:00:05]}  Rf3 {[%clk 0:00:01]} 70. Ne6 {[%clk 0:00:05]}  Rxd3+ {[%clk 0:00:01]} 71. Kc4 {[%clk 0:00:06]}  Rh3 {[%clk 0:00:01]} 72. Nc5 {[%clk 0:00:06]}  Bd3+ {[%clk 0:00:02]} 73. Nxd3 {[%clk 0:00:06]}  Rh4+ {[%clk 0:00:03]} 74. Kc3 {[%clk 0:00:06]}  Kb6 {[%clk 0:00:04]} 75. Nb2 {[%clk 0:00:06]}  a5 {[%clk 0:00:04]} 76. Nc4+ {[%clk 0:00:06]}  Ka6 {[%clk 0:00:04]} 77. Kb2 {[%clk 0:00:07]}  Rh3 {[%clk 0:00:04]} 78. Ka3 {[%clk 0:00:07]}  Rh4 {[%clk 0:00:04]} 79. Ne5 {[%clk 0:00:07]}  Rh5 {[%clk 0:00:05]} 80. Nc4 {[%clk 0:00:08]}  Kb7 {[%clk 0:00:05]} 81. Kb2 {[%clk 0:00:08]}  Kc6 {[%clk 0:00:05]} 82. Kc3 {[%clk 0:00:09]}  Rg5 {[%clk 0:00:05]} 83. Kb2 {[%clk 0:00:08]}  Rh5 {[%clk 0:00:05]} 84. Ka3 {[%clk 0:00:08]}  Kb7 {[%clk 0:00:04]} 85. Kb2 {[%clk 0:00:09]}  Kc6 {[%clk 0:00:04]} 1/2-1/2


[Site "https://www.chess.com"]

[Event "Titled Tuesday Blitz December 7 2021"]
[White "Eynullayev, Atilla"]
[Black "Rozman, Levy"]
[WhiteFideId "13413570"]
[BlackFideId "2039877"]
[WhiteElo "1982"]
[BlackElo "2376"]
[Result "0-1"]
[Round "06"]
[TimeControl "180+1"]
[Date "2021.12.07"]
[WhiteClock "0:00:08"]
[BlackClock "0:00:05"]

1. e4 {[%clk 0:03:00]}  c6 {[%clk 0:03:00]} 2. Nf3 {[%clk 0:03:00]}  d5 {[%clk 0:03:01]} 3. Nc3 {[%clk 0:03:00]}  a6 {[%clk 0:03:01]} 4. d4 {[%clk 0:02:56]}  Bg4 {[%clk 0:03:01]} 5. h3 {[%clk 0:02:53]}  Bxf3 {[%clk 0:03:01]} 6. Qxf3 {[%clk 0:02:54]}  e6 {[%clk 0:03:01]} 7. Bd2 {[%clk 0:02:49]}  g6 {[%clk 0:03:01]} 8. O-O-O {[%clk 0:02:49]}  Bg7 {[%clk 0:03:02]} 9. e5 {[%clk 0:02:49]}  c5 {[%clk 0:03:01]} 10. dxc5 {[%clk 0:02:34]}  Nd7 {[%clk 0:03:01]} 11. Be3 {[%clk 0:02:19]}  Rc8 {[%clk 0:02:59]} 12. h4 {[%clk 0:02:08]}  h5 {[%clk 0:02:58]} 13. Bg5 {[%clk 0:01:52]}  Qa5 {[%clk 0:02:56]} 14. Nxd5 {[%clk 0:01:28]}  Qxc5 {[%clk 0:02:32]} 15. Nc3 {[%clk 0:01:16]}  Rc7 {[%clk 0:02:15]} 16. Be3 {[%clk 0:01:13]}  Qxe5 {[%clk 0:02:12]} 17. Bd4 {[%clk 0:01:10]}  Qxd4 {[%clk 0:02:07]} 18. Rxd4 {[%clk 0:01:10]}  Bxd4 {[%clk 0:02:08]} 19. Ne4 {[%clk 0:01:05]}  Be5 {[%clk 0:02:02]} 20. Bd3 {[%clk 0:01:01]}  Ne7 {[%clk 0:02:00]} 21. Re1 {[%clk 0:01:00]}  Nf5 {[%clk 0:01:49]} 22. g3 {[%clk 0:00:53]}  Ke7 {[%clk 0:01:42]} 23. Kb1 {[%clk 0:00:46]}  Rd8 {[%clk 0:01:38]} 24. Ng5 {[%clk 0:00:42]}  Nd6 {[%clk 0:01:29]} 25. g4 {[%clk 0:00:36]}  hxg4 {[%clk 0:01:27]} 26. Qxg4 {[%clk 0:00:36]}  Nf6 {[%clk 0:01:05]} 27. Qh3 {[%clk 0:00:29]}  Rc5 {[%clk 0:00:28]} 28. Nf3 {[%clk 0:00:26]}  Bf4 {[%clk 0:00:24]} 29. Nd4 {[%clk 0:00:23]}  Re5 {[%clk 0:00:24]} 30. Rxe5 {[%clk 0:00:21]}  Bxe5 {[%clk 0:00:24]} 31. Ne2 {[%clk 0:00:20]}  Nf5 {[%clk 0:00:24]} 32. a3 {[%clk 0:00:18]}  Rh8 {[%clk 0:00:19]} 33. Bxf5 {[%clk 0:00:18]}  gxf5 {[%clk 0:00:20]} 34. f4 {[%clk 0:00:17]}  Bd6 {[%clk 0:00:19]} 35. Qb3 {[%clk 0:00:17]}  b5 {[%clk 0:00:19]} 36. a4 {[%clk 0:00:18]}  Rxh4 {[%clk 0:00:17]} 37. axb5 {[%clk 0:00:18]}  axb5 {[%clk 0:00:18]} 38. Qxb5 {[%clk 0:00:18]}  Nd7 {[%clk 0:00:17]} 39. b4 {[%clk 0:00:16]}  Rh1+ {[%clk 0:00:13]} 40. Kb2 {[%clk 0:00:15]}  Rh8 {[%clk 0:00:12]} 41. Qc4 {[%clk 0:00:15]}  Rb8 {[%clk 0:00:10]} 42. c3 {[%clk 0:00:16]}  Nb6 {[%clk 0:00:10]} 43. Qd3 {[%clk 0:00:15]}  Rc8 {[%clk 0:00:09]} 44. Qg3 {[%clk 0:00:13]}  Nc4+ {[%clk 0:00:08]} 45. Kc2 {[%clk 0:00:14]}  Nb6 {[%clk 0:00:06]} 46. Qg5+ {[%clk 0:00:14]}  Ke8 {[%clk 0:00:05]} 47. Qg8+ {[%clk 0:00:14]}  Bf8 {[%clk 0:00:04]} 48. Qg3 {[%clk 0:00:13]}  Nd5 {[%clk 0:00:04]} 49. Kb3 {[%clk 0:00:13]}  Rd8 {[%clk 0:00:03]} 50. c4 {[%clk 0:00:13]}  Ne7 {[%clk 0:00:03]} 51. b5 {[%clk 0:00:13]}  Rc8 {[%clk 0:00:03]} 52. Nc3 {[%clk 0:00:13]}  Ng6 {[%clk 0:00:04]} 53. Na4 {[%clk 0:00:12]}  Bd6 {[%clk 0:00:03]} 54. Qd3 {[%clk 0:00:12]}  Ke7 {[%clk 0:00:03]} 55. c5 {[%clk 0:00:12]}  Bxf4 {[%clk 0:00:03]} 56. b6 {[%clk 0:00:11]}  Ne5 {[%clk 0:00:03]} 57. Qb5 {[%clk 0:00:11]}  Rh8 {[%clk 0:00:02]} 58. Qc6 {[%clk 0:00:07]}  Rh3+ {[%clk 0:00:03]} 59. Nc3 {[%clk 0:00:07]}  Nxc6 {[%clk 0:00:04]} 60. Kc4 {[%clk 0:00:08]}  Be5 {[%clk 0:00:04]} 61. Kb5 {[%clk 0:00:08]}  Nd4+ {[%clk 0:00:03]} 62. Ka6 {[%clk 0:00:08]}  Rxc3 {[%clk 0:00:03]} 63. c6 {[%clk 0:00:07]}  Ra3+ {[%clk 0:00:03]} 64. Kb7 {[%clk 0:00:07]}  Nxc6 {[%clk 0:00:04]} 65. Kxc6 {[%clk 0:00:08]}  Rb3 {[%clk 0:00:05]} 66. Kb7 {[%clk 0:00:08]}  f4 {[%clk 0:00:05]} 0-1


[Site "https://www.chess.com"]

[Event "Titled Tuesday Blitz December 7 2021"]
[White "Gaehwiler, Gabriel"]
[Black "Cruz Mendez, Jean Marco"]
[WhiteFideId "1314530"]
[BlackFideId "3526402"]
[WhiteElo "2383"]
[BlackElo "2064"]
[Result "1-0"]
[Round "06"]
[TimeControl "180+1"]
[Date "2021.12.07"]
[WhiteClock "0:00:06"]
[BlackClock "0:00:20"]

1. Nf3 {[%clk 0:03:00]}  Nf6 {[%clk 0:02:58]} 2. c4 {[%clk 0:03:00]}  g6 {[%clk 0:02:56]} 3. g3 {[%clk 0:03:01]}  Bg7 {[%clk 0:02:56]} 4. Bg2 {[%clk 0:03:02]}  O-O {[%clk 0:02:55]} 5. O-O {[%clk 0:03:03]}  d6 {[%clk 0:02:54]} 6. b3 {[%clk 0:03:03]}  Ne4 {[%clk 0:02:52]} 7. d4 {[%clk 0:03:03]}  a5 {[%clk 0:02:51]} 8. Bb2 {[%clk 0:03:01]}  a4 {[%clk 0:02:50]} 9. Qc1 {[%clk 0:02:52]}  f5 {[%clk 0:02:49]} 10. d5 {[%clk 0:02:42]}  e5 {[%clk 0:02:46]} 11. dxe6 {[%clk 0:02:41]}  Bxe6 {[%clk 0:02:45]} 12. Bxg7 {[%clk 0:02:20]}  Kxg7 {[%clk 0:02:46]} 13. Nc3 {[%clk 0:02:19]}  axb3 {[%clk 0:02:30]} 14. axb3 {[%clk 0:02:17]}  Rxa1 {[%clk 0:02:21]} 15. Qxa1 {[%clk 0:02:18]}  Qf6 {[%clk 0:02:19]} 16. Nxe4 {[%clk 0:02:14]}  fxe4 {[%clk 0:02:20]} 17. Ng5 {[%clk 0:01:58]}  Bg4 {[%clk 0:01:49]} 18. Qxf6+ {[%clk 0:01:47]}  Rxf6 {[%clk 0:01:47]} 19. Nxe4 {[%clk 0:01:45]}  Re6 {[%clk 0:01:46]} 20. Re1 {[%clk 0:01:33]}  Nc6 {[%clk 0:01:41]} 21. Nc3 {[%clk 0:00:54]}  Nd4 {[%clk 0:01:35]} 22. Bxb7 {[%clk 0:00:47]}  Nxe2+ {[%clk 0:01:26]} 23. Nxe2 {[%clk 0:00:46]}  Rxe2 {[%clk 0:01:26]} 24. Rxe2 {[%clk 0:00:45]}  Bxe2 {[%clk 0:01:27]} 25. f4 {[%clk 0:00:44]}  Kf6 {[%clk 0:01:26]} 26. Kf2 {[%clk 0:00:44]}  Bd1 {[%clk 0:01:26]} 27. b4 {[%clk 0:00:44]}  Bb3 {[%clk 0:01:27]} 28. Bd5 {[%clk 0:00:43]}  h6 {[%clk 0:01:21]} 29. h4 {[%clk 0:00:41]}  g5 {[%clk 0:01:16]} 30. hxg5+ {[%clk 0:00:39]}  hxg5 {[%clk 0:01:17]} 31. Ke3 {[%clk 0:00:39]}  Bc2 {[%clk 0:01:14]} 32. Be4 {[%clk 0:00:38]}  Bb3 {[%clk 0:01:12]} 33. Kd4 {[%clk 0:00:38]}  Ba4 {[%clk 0:01:07]} 34. c5 {[%clk 0:00:36]}  dxc5+ {[%clk 0:01:05]} 35. Kxc5 {[%clk 0:00:20]}  Bd7 {[%clk 0:01:06]} 36. Kd5 {[%clk 0:00:15]}  Bb5 {[%clk 0:01:00]} 37. Kd4 {[%clk 0:00:15]}  Bd7 {[%clk 0:00:58]} 38. Bd3 {[%clk 0:00:15]}  Bc8 {[%clk 0:00:57]} 39. Kc5 {[%clk 0:00:15]}  Bd7 {[%clk 0:00:56]} 40. Kd5 {[%clk 0:00:15]}  Be8 {[%clk 0:00:45]} 41. Bc2 {[%clk 0:00:09]}  Bd7 {[%clk 0:00:44]} 42. Bd1 {[%clk 0:00:09]}  Be8 {[%clk 0:00:43]} 43. Bg4 {[%clk 0:00:07]}  Ba4 {[%clk 0:00:41]} 44. Bc8 {[%clk 0:00:07]}  Bb5 {[%clk 0:00:40]} 45. Kc5 {[%clk 0:00:07]}  Be8 {[%clk 0:00:39]} 46. Bg4 {[%clk 0:00:07]}  Ba4 {[%clk 0:00:21]} 47. Be2 {[%clk 0:00:07]}  Bd7 {[%clk 0:00:21]} 48. Bb5 {[%clk 0:00:07]}  Bc8 {[%clk 0:00:20]} 49. Kc6 {[%clk 0:00:06]}  gxf4 {[%clk 0:00:20]} 50. gxf4 {[%clk 0:00:06]}  Kf5 {[%clk 0:00:20]} 51. Kxc7 {[%clk 0:00:07]}  Be6 {[%clk 0:00:20]} 52. Bd7 {[%clk 0:00:06]} 1-0


[Site "https://www.chess.com"]